[Event "Early-Titled-Tuesday-Blitz-October-03-2023"]
[Site "Chess.com"]
[Date "2023.10.03"]
[Round "1"]
[White "Larina_Maria"]
[Black "mortngabriel"]
[Result "0-1"]
[WhiteElo "2210"]
[BlackElo "2573"]
[TimeControl "180+1"]
[EndTime "8:07:36 PDT"]
[Termination "mortngabriel won on time"]

1. e4 {[%clk 0:03:00.9]} 1... c5 {[%clk 0:02:59.6]} 2. Nc3 {[%clk 0:03:00.4]}
2... Nc6 {[%clk 0:02:59.4]} 3. g3 {[%clk 0:03:00.6]} 3... g6 {[%clk 0:02:59.2]}
4. Bg2 {[%clk 0:03:01.2]} 4... Bg7 {[%clk 0:03:00.1]} 5. d3 {[%clk 0:03:01.7]}
5... d6 {[%clk 0:03:00.5]} 6. Be3 {[%clk 0:03:02.4]} 6... Rb8 {[%clk 0:03:00.6]}
7. Qd2 {[%clk 0:03:01.7]} 7... b5 {[%clk 0:03:00.5]} 8. Nge2 {[%clk 0:03:02]}
8... b4 {[%clk 0:03:00.6]} 9. Nd1 {[%clk 0:03:02.7]} 9... e6 {[%clk 0:02:57.3]}
10. O-O {[%clk 0:03:02.2]} 10... a5 {[%clk 0:02:52]} 11. c3 {[%clk 0:02:57.5]}
11... Ba6 {[%clk 0:02:46.7]} 12. f4 {[%clk 0:02:52.2]} 12... Qc7 {[%clk
0:02:22.9]} 13. f5 {[%clk 0:02:50.5]} 13... Ne5 {[%clk 0:02:17.2]} 14. fxe6
{[%clk 0:02:50.6]} 14... fxe6 {[%clk 0:02:15.3]} 15. Nf4 {[%clk 0:02:45]} 15...
Qe7 {[%clk 0:02:09.4]} 16. Bh3 {[%clk 0:02:42.4]} 16... Bc8 {[%clk 0:02:09.1]}
17. Qe2 {[%clk 0:02:15.1]} 17... Nf6 {[%clk 0:01:30.8]} 18. d4 {[%clk
0:02:10.2]} 18... cxd4 {[%clk 0:01:29.4]} 19. cxd4 {[%clk 0:02:11.1]} 19... Nc6
{[%clk 0:01:28]} 20. Qc4 {[%clk 0:01:57]} 20... Bd7 {[%clk 0:01:13.4]} 21. Nxe6
{[%clk 0:01:42.6]} 21... Nxe4 {[%clk 0:00:59]} 22. Nc7+ {[%clk 0:01:16.6]} 22...
Kd8 {[%clk 0:00:58.1]} 23. Bxd7 {[%clk 0:00:53.1]} 23... Qxd7 {[%clk 0:00:51.2]}
24. Rf7 {[%clk 0:00:52.5]} 24... Qg4 {[%clk 0:00:19.5]} 25. Qxc6 {[%clk
0:00:43.8]} 25... Nxg3 {[%clk 0:00:19]} 26. hxg3 {[%clk 0:00:24.5]} 26... Qxg3+
{[%clk 0:00:19.2]} 27. Qg2 {[%clk 0:00:25.2]} 27... Qe1+ {[%clk 0:00:17.1]} 28.
Rf1 {[%clk 0:00:19.2]} 28... Qh4 {[%clk 0:00:17]} 29. Ne6+ {[%clk 0:00:19]}
29... Kd7 {[%clk 0:00:14.6]} 30. Nxg7 {[%clk 0:00:18.8]} 30... Rhf8 {[%clk
0:00:14.3]} 31. Nf2 {[%clk 0:00:11.9]} 31... Rf7 {[%clk 0:00:13.6]} 32. Qg4+
{[%clk 0:00:07]} 32... Qxg4+ {[%clk 0:00:13.4]} 33. Nxg4 {[%clk 0:00:07.9]}
33... Rxg7 {[%clk 0:00:14.1]} 34. Rf6 {[%clk 0:00:06.8]} 34... Re8 {[%clk
0:00:13.7]} 35. Raf1 {[%clk 0:00:06.2]} 35... Kd8 {[%clk 0:00:11.1]} 36. Rxd6+
{[%clk 0:00:05.8]} 36... Kc7 {[%clk 0:00:10.8]} 37. Bf4 {[%clk 0:00:05.8]} 37...
Kc8 {[%clk 0:00:09.8]} 38. Rc6+ {[%clk 0:00:05.7]} 38... Kb7 {[%clk 0:00:09.7]}
39. Rc5 {[%clk 0:00:05.5]} 39... Rd7 {[%clk 0:00:09.5]} 40. Rd1 {[%clk
0:00:03.6]} 40... Re4 {[%clk 0:00:09.1]} 41. Rf1 {[%clk 0:00:01.1]} 41... Rdxd4
{[%clk 0:00:08.7]} 42. Ne5 {[%clk 0:00:01.1]} 42... Rxf4 {[%clk 0:00:08.8]} 0-1

[Event "Early-Titled-Tuesday-Blitz-October-03-2023"]
[Site "Chess.com"]
[Date "2023.10.03"]
[Round "1"]
[White "kikoveiga"]
[Black "Kopytkin"]
[Result "0-1"]
[WhiteElo "2654"]
[BlackElo "2386"]
[TimeControl "180+1"]
[EndTime "8:07:40 PDT"]
[Termination "Kopytkin won on time"]

1. Nf3 {[%clk 0:03:00.9]} 1... Nf6 {[%clk 0:02:55.2]} 2. g3 {[%clk 0:03:01.5]}
2... g6 {[%clk 0:02:54.1]} 3. Bg2 {[%clk 0:03:02.4]} 3... Bg7 {[%clk 0:02:54.5]}
4. O-O {[%clk 0:03:01.7]} 4... O-O {[%clk 0:02:55.1]} 5. c4 {[%clk 0:02:58.4]}
5... d6 {[%clk 0:02:55]} 6. d4 {[%clk 0:02:56.7]} 6... Nc6 {[%clk 0:02:55.3]} 7.
b3 {[%clk 0:02:54.4]} 7... Bg4 {[%clk 0:02:50.4]} 8. Bb2 {[%clk 0:02:54.5]} 8...
Qc8 {[%clk 0:02:15.1]} 9. Nbd2 {[%clk 0:02:52.6]} 9... Bh3 {[%clk 0:02:13.4]}
10. d5 {[%clk 0:02:39.8]} 10... Nb8 {[%clk 0:02:06.5]} 11. e4 {[%clk 0:02:39.2]}
11... Bxg2 {[%clk 0:02:05.4]} 12. Kxg2 {[%clk 0:02:40.1]} 12... a5 {[%clk
0:01:55.3]} 13. Qc2 {[%clk 0:02:38.4]} 13... Nbd7 {[%clk 0:01:54.6]} 14. Rae1
{[%clk 0:02:36.2]} 14... c6 {[%clk 0:01:36.5]} 15. Qb1 {[%clk 0:02:23]} 15...
cxd5 {[%clk 0:01:31.1]} 16. exd5 {[%clk 0:02:17.5]} 16... Re8 {[%clk 0:01:31.4]}
17. Nd4 {[%clk 0:02:09.3]} 17... Nc5 {[%clk 0:01:14.7]} 18. Nb5 {[%clk
0:02:06.5]} 18... Na6 {[%clk 0:01:11.5]} 19. Re2 {[%clk 0:01:54.3]} 19... Nc7
{[%clk 0:01:11.3]} 20. a4 {[%clk 0:01:46.4]} 20... Nxb5 {[%clk 0:01:10.9]} 21.
axb5 {[%clk 0:01:47.3]} 21... Nd7 {[%clk 0:00:59.4]} 22. Bxg7 {[%clk 0:01:45]}
22... Kxg7 {[%clk 0:01:00.3]} 23. Rfe1 {[%clk 0:01:45.3]} 23... Kf8 {[%clk
0:00:54.6]} 24. Qa1 {[%clk 0:01:42.8]} 24... f6 {[%clk 0:00:54.3]} 25. h4 {[%clk
0:01:27.6]} 25... Ne5 {[%clk 0:00:48.6]} 26. f4 {[%clk 0:01:23.7]} 26... Ng4
{[%clk 0:00:33.8]} 27. Nf3 {[%clk 0:01:18.7]} 27... a4 {[%clk 0:00:29.7]} 28.
Qb1 {[%clk 0:01:01.8]} 28... axb3 {[%clk 0:00:28.3]} 29. Qxb3 {[%clk 0:01:02.7]}
29... Qc5 {[%clk 0:00:26.9]} 30. h5 {[%clk 0:00:52]} 30... Ra3 {[%clk 0:00:26]}
31. Qb1 {[%clk 0:00:48.5]} 31... Ne3+ {[%clk 0:00:21.2]} 32. Kh3 {[%clk
0:00:14.9]} 32... Nf5 {[%clk 0:00:20.3]} 33. Rf1 {[%clk 0:00:13.5]} 33... Qxc4
{[%clk 0:00:17.5]} 34. Re4 {[%clk 0:00:09.2]} 34... Qd3 {[%clk 0:00:17]} 35.
Qxd3 {[%clk 0:00:05.4]} 35... Rxd3 {[%clk 0:00:17.9]} 36. hxg6 {[%clk
0:00:05.8]} 36... hxg6 {[%clk 0:00:17.5]} 37. g4 {[%clk 0:00:05.3]} 37... Ne3
{[%clk 0:00:12.8]} 38. Re1 {[%clk 0:00:04.8]} 38... Nxd5 {[%clk 0:00:12.5]} 39.
Kg3 {[%clk 0:00:05.3]} 39... Kf7 {[%clk 0:00:12.1]} 40. g5 {[%clk 0:00:04.4]}
40... Rc8 {[%clk 0:00:11.1]} 41. gxf6 {[%clk 0:00:03.7]} 41... exf6 {[%clk
0:00:10.1]} 42. Rf1 {[%clk 0:00:02.3]} 42... Rcc3 {[%clk 0:00:09.9]} 43. Ra4
{[%clk 0:00:02.3]} 43... g5 {[%clk 0:00:09.1]} 44. fxg5 {[%clk 0:00:02.3]} 44...
fxg5 {[%clk 0:00:09.6]} 45. Kg4 {[%clk 0:00:03]} 45... Kg6 {[%clk 0:00:09.1]}
46. Rf2 {[%clk 0:00:01.9]} 46... Nf6+ {[%clk 0:00:09.2]} 0-1

[Event "Early-Titled-Tuesday-Blitz-October-03-2023"]
[Site "Chess.com"]
[Date "2023.10.03"]
[Round "1"]
[White "Defenstrator"]
[Black "Leonid_Starozhilov"]
[Result "0-1"]
[WhiteElo "2432"]
[BlackElo "2758"]
[TimeControl "180+1"]
[EndTime "8:07:42 PDT"]
[Termination "Leonid_Starozhilov won on time"]

1. d4 {[%clk 0:02:59]} 1... Nf6 {[%clk 0:03:00]} 2. Bg5 {[%clk 0:02:58.3]} 2...
c5 {[%clk 0:02:59.6]} 3. dxc5 {[%clk 0:02:56.2]} 3... Na6 {[%clk 0:02:55.4]} 4.
Bxf6 {[%clk 0:02:41.7]} 4... gxf6 {[%clk 0:02:55.3]} 5. Qd4 {[%clk 0:02:29.8]}
5... Qa5+ {[%clk 0:02:53.7]} 6. Nc3 {[%clk 0:02:28.6]} 6... Qxc5 {[%clk
0:02:50.5]} 7. Nf3 {[%clk 0:02:23.5]} 7... Qxd4 {[%clk 0:02:39.8]} 8. Nxd4
{[%clk 0:02:23.6]} 8... Nc7 {[%clk 0:02:40.5]} 9. g3 {[%clk 0:02:18.2]} 9... a6
{[%clk 0:02:35.7]} 10. Bg2 {[%clk 0:02:13]} 10... e6 {[%clk 0:02:36.1]} 11.
O-O-O {[%clk 0:02:06.7]} 11... Rb8 {[%clk 0:02:28.1]} 12. Kb1 {[%clk 0:01:45.6]}
12... b5 {[%clk 0:02:15.3]} 13. e4 {[%clk 0:01:45.3]} 13... Bb7 {[%clk
0:02:12.3]} 14. Rhe1 {[%clk 0:01:44.5]} 14... Bc5 {[%clk 0:02:10.8]} 15. f4
{[%clk 0:01:24.7]} 15... Na8 {[%clk 0:02:09.4]} 16. Nb3 {[%clk 0:01:04.9]} 16...
Bb6 {[%clk 0:02:01.5]} 17. Rd2 {[%clk 0:01:00.3]} 17... Ke7 {[%clk 0:01:59.4]}
18. Red1 {[%clk 0:00:59.5]} 18... Rhd8 {[%clk 0:01:59.7]} 19. a4 {[%clk
0:00:53.1]} 19... b4 {[%clk 0:01:57.6]} 20. Na2 {[%clk 0:00:49.2]} 20... a5
{[%clk 0:01:57.1]} 21. c3 {[%clk 0:00:50.1]} 21... Bc6 {[%clk 0:01:53.4]} 22.
cxb4 {[%clk 0:00:48.2]} 22... Bxa4 {[%clk 0:01:53.6]} 23. Rd3 {[%clk 0:00:45.9]}
23... Ba7 {[%clk 0:01:50.1]} 24. Nxa5 {[%clk 0:00:10.4]} 24... Bxd1 {[%clk
0:01:49.4]} 25. Rxd1 {[%clk 0:00:10.9]} 25... Nc7 {[%clk 0:01:41.6]} 26. e5
{[%clk 0:00:11]} 26... Nb5 {[%clk 0:01:27.4]} 27. Nb7 {[%clk 0:00:06.2]} 27...
Rdc8 {[%clk 0:01:27.6]} 28. exf6+ {[%clk 0:00:05.3]} 28... Kxf6 {[%clk
0:01:15.8]} 29. Rxd7 {[%clk 0:00:05.4]} 29... Rc7 {[%clk 0:01:02.1]} 30. Rxc7
{[%clk 0:00:06.1]} 30... Nxc7 {[%clk 0:01:03]} 31. Nc3 {[%clk 0:00:07]} 31...
Bd4 {[%clk 0:00:54.1]} 32. Ne4+ {[%clk 0:00:06.7]} 32... Ke7 {[%clk 0:00:54.4]}
33. Nec5 {[%clk 0:00:03.8]} 33... Nd5 {[%clk 0:00:24.7]} 34. Na5 {[%clk
0:00:04.2]} 34... Nxb4 {[%clk 0:00:22.2]} 35. Nd3 {[%clk 0:00:04.9]} 35... Kf6
{[%clk 0:00:17.7]} 36. Nxb4 {[%clk 0:00:03.5]} 36... Rxb4 {[%clk 0:00:18.6]} 37.
Nc6 {[%clk 0:00:02.7]} 37... Rxb2+ {[%clk 0:00:18.9]} 38. Kc1 {[%clk 0:00:03.6]}
38... Rxg2 {[%clk 0:00:19.7]} 39. Nxd4 {[%clk 0:00:04.4]} 39... Rxh2 {[%clk
0:00:20.6]} 40. Kd1 {[%clk 0:00:03.8]} 40... Rg2 {[%clk 0:00:19.6]} 41. Ne2
{[%clk 0:00:04]} 41... Kf5 {[%clk 0:00:18.6]} 42. Ke1 {[%clk 0:00:03.2]} 42...
Kg4 {[%clk 0:00:19.3]} 43. f5 {[%clk 0:00:02]} 43... Rxe2+ {[%clk 0:00:19.3]}
0-1

[Event "Early-Titled-Tuesday-Blitz-October-03-2023"]
[Site "Chess.com"]
[Date "2023.10.03"]
[Round "1"]
[White "YEIKO2017"]
[Black "bocah_sakit"]
[Result "0-1"]
[WhiteElo "2399"]
[BlackElo "2709"]
[TimeControl "180+1"]
[EndTime "8:07:43 PDT"]
[Termination "bocah_sakit won on time"]

1. e4 {[%clk 0:03:00.9]} 1... e5 {[%clk 0:02:56.8]} 2. Nf3 {[%clk 0:03:00.1]}
2... Nc6 {[%clk 0:02:57.1]} 3. Bb5 {[%clk 0:02:59.5]} 3... a6 {[%clk 0:02:56.5]}
4. Ba4 {[%clk 0:02:53.5]} 4... Nf6 {[%clk 0:02:56.4]} 5. d4 {[%clk 0:02:53.8]}
5... exd4 {[%clk 0:02:33]} 6. O-O {[%clk 0:02:52.5]} 6... Bc5 {[%clk 0:01:34.6]}
7. e5 {[%clk 0:02:51]} 7... Nd5 {[%clk 0:01:35.1]} 8. c3 {[%clk 0:02:50.6]} 8...
O-O {[%clk 0:01:19.8]} 9. cxd4 {[%clk 0:02:50.1]} 9... Ba7 {[%clk 0:01:20.1]}
10. Bb3 {[%clk 0:02:49.3]} 10... Nce7 {[%clk 0:01:18.1]} 11. Bg5 {[%clk
0:02:44.3]} 11... h6 {[%clk 0:01:18.3]} 12. Bxd5 {[%clk 0:02:41.1]} 12... hxg5
{[%clk 0:01:18.3]} 13. Nxg5 {[%clk 0:02:41.6]} 13... g6 {[%clk 0:01:07]} 14. Bb3
{[%clk 0:02:34]} 14... d5 {[%clk 0:01:06.9]} 15. Nc3 {[%clk 0:02:15.4]} 15... c6
{[%clk 0:01:02.8]} 16. f4 {[%clk 0:02:11.1]} 16... Nf5 {[%clk 0:01:00.9]} 17.
Nf3 {[%clk 0:02:10.9]} 17... Ne3 {[%clk 0:01:01]} 18. Qd2 {[%clk 0:02:02.7]}
18... Nxf1 {[%clk 0:01:00.7]} 19. Rxf1 {[%clk 0:02:03.6]} 19... Bg4 {[%clk
0:01:00.3]} 20. f5 {[%clk 0:01:55.6]} 20... Re8 {[%clk 0:00:27]} 21. fxg6 {[%clk
0:01:50.5]} 21... fxg6 {[%clk 0:00:26.9]} 22. Qh6 {[%clk 0:01:44.2]} 22... Bf5
{[%clk 0:00:23.5]} 23. Ng5 {[%clk 0:01:20.6]} 23... Bxd4+ {[%clk 0:00:22.3]} 24.
Kh1 {[%clk 0:01:19]} 24... Re7 {[%clk 0:00:21.2]} 25. Rxf5 {[%clk 0:00:58.8]}
25... gxf5 {[%clk 0:00:20.6]} 26. Qg6+ {[%clk 0:00:57.4]} 26... Rg7 {[%clk
0:00:20.9]} 27. Qe6+ {[%clk 0:00:54.1]} 27... Kf8 {[%clk 0:00:21.1]} 28. Qxf5+
{[%clk 0:00:50.5]} 28... Ke8 {[%clk 0:00:21.8]} 29. Ne6 {[%clk 0:00:45.6]} 29...
Qd7 {[%clk 0:00:22.5]} 30. Nxg7+ {[%clk 0:00:35.6]} 30... Qxg7 {[%clk
0:00:23.4]} 31. e6 {[%clk 0:00:32.3]} 31... Qf6 {[%clk 0:00:22.9]} 32. g4 {[%clk
0:00:22.8]} 32... Qxf5 {[%clk 0:00:21.5]} 33. gxf5 {[%clk 0:00:23]} 33... Ke7
{[%clk 0:00:22.4]} 34. Kg2 {[%clk 0:00:22.3]} 34... Rg8+ {[%clk 0:00:22.4]} 35.
Kf3 {[%clk 0:00:21.7]} 35... Kf6 {[%clk 0:00:23.1]} 36. Bc2 {[%clk 0:00:20.8]}
36... Be5 {[%clk 0:00:21]} 37. Ne2 {[%clk 0:00:16.4]} 37... Bxh2 {[%clk
0:00:20.2]} 38. Nd4 {[%clk 0:00:12.7]} 38... Be5 {[%clk 0:00:20.7]} 39. Nb3
{[%clk 0:00:11.6]} 39... b6 {[%clk 0:00:19.3]} 40. a4 {[%clk 0:00:08.3]} 40...
Rg3+ {[%clk 0:00:18.4]} 41. Kf2 {[%clk 0:00:07.8]} 41... Rh3 {[%clk 0:00:19]}
42. Bd1 {[%clk 0:00:03.3]} 42... Rh2+ {[%clk 0:00:19.9]} 43. Kf3 {[%clk
0:00:02.8]} 43... Rxb2 {[%clk 0:00:20.8]} 44. a5 {[%clk 0:00:01.7]} 44... bxa5
{[%clk 0:00:20.6]} 45. Nc5 {[%clk 0:00:02]} 45... Bd6 {[%clk 0:00:19.2]} 46.
Nd7+ {[%clk 0:00:01.7]} 46... Ke7 {[%clk 0:00:18.8]} 0-1

[Event "Early-Titled-Tuesday-Blitz-October-03-2023"]
[Site "Chess.com"]
[Date "2023.10.03"]
[Round "1"]
[White "AttilaTurzo"]
[Black "nrvignesh"]
[Result "0-1"]
[WhiteElo "2468"]
[BlackElo "2831"]
[TimeControl "180+1"]
[EndTime "8:07:44 PDT"]
[Termination "nrvignesh won on time"]

1. d4 {[%clk 0:02:54.2]} 1... Nf6 {[%clk 0:02:59.7]} 2. Nf3 {[%clk 0:02:53.1]}
2... e6 {[%clk 0:02:59.4]} 3. Bf4 {[%clk 0:02:52.9]} 3... d5 {[%clk 0:02:53.1]}
4. e3 {[%clk 0:02:52.4]} 4... Bd6 {[%clk 0:02:50.9]} 5. Nbd2 {[%clk 0:02:44.8]}
5... O-O {[%clk 0:02:50.2]} 6. Bd3 {[%clk 0:02:43.9]} 6... c5 {[%clk 0:02:49.6]}
7. c3 {[%clk 0:02:40.5]} 7... Bxf4 {[%clk 0:02:47.5]} 8. exf4 {[%clk 0:02:40.3]}
8... Qc7 {[%clk 0:02:47.8]} 9. g3 {[%clk 0:02:37.8]} 9... cxd4 {[%clk
0:02:48.4]} 10. Nxd4 {[%clk 0:02:37.3]} 10... e5 {[%clk 0:02:47.4]} 11. fxe5
{[%clk 0:02:35]} 11... Qxe5+ {[%clk 0:02:48.3]} 12. Qe2 {[%clk 0:02:34.6]} 12...
Qc7 {[%clk 0:02:48.5]} 13. O-O {[%clk 0:02:31.2]} 13... Bg4 {[%clk 0:02:48]} 14.
f3 {[%clk 0:02:29]} 14... Bh3 {[%clk 0:02:47.9]} 15. Rfe1 {[%clk 0:02:29.1]}
15... Nc6 {[%clk 0:02:47.8]} 16. Qf2 {[%clk 0:02:26.2]} 16... Rae8 {[%clk
0:02:43.2]} 17. N2b3 {[%clk 0:02:22.5]} 17... Qb6 {[%clk 0:02:40.7]} 18. Nxc6
{[%clk 0:02:18.1]} 18... bxc6 {[%clk 0:02:40]} 19. c4 {[%clk 0:02:02.5]} 19...
Be6 {[%clk 0:02:15.1]} 20. cxd5 {[%clk 0:01:40.3]} 20... Bxd5 {[%clk 0:02:13.4]}
21. Qxb6 {[%clk 0:01:32.3]} 21... axb6 {[%clk 0:02:14.3]} 22. Kf2 {[%clk
0:01:32.7]} 22... Bxb3 {[%clk 0:02:08.3]} 23. axb3 {[%clk 0:01:32.4]} 23... Rxe1
{[%clk 0:02:08.4]} 24. Kxe1 {[%clk 0:01:28.7]} 24... Nd5 {[%clk 0:02:08.1]} 25.
Kd2 {[%clk 0:01:28.5]} 25... Nb4 {[%clk 0:02:07.7]} 26. Be4 {[%clk 0:01:26.8]}
26... f5 {[%clk 0:02:02.4]} 27. Bb1 {[%clk 0:01:20.5]} 27... Rd8+ {[%clk
0:01:59.4]} 28. Ke2 {[%clk 0:01:19.6]} 28... g6 {[%clk 0:01:54.2]} 29. Ra7
{[%clk 0:01:18.3]} 29... Rd5 {[%clk 0:01:49.7]} 30. g4 {[%clk 0:01:12.3]} 30...
fxg4 {[%clk 0:01:43.5]} 31. fxg4 {[%clk 0:01:13.2]} 31... Rd4 {[%clk 0:01:42.8]}
32. h3 {[%clk 0:01:10.7]} 32... Nd5 {[%clk 0:01:42.6]} 33. Ra4 {[%clk
0:00:58.8]} 33... Rf4 {[%clk 0:01:25.7]} 34. Be4 {[%clk 0:00:52.2]} 34... Rf6
{[%clk 0:01:02.3]} 35. Bxd5+ {[%clk 0:00:43.4]} 35... cxd5 {[%clk 0:01:03.2]}
36. Ra7 {[%clk 0:00:43.5]} 36... Rf4 {[%clk 0:00:59.9]} 37. Rd7 {[%clk
0:00:41.3]} 37... Rb4 {[%clk 0:00:59.7]} 38. Rxd5 {[%clk 0:00:36.3]} 38... Rxb3
{[%clk 0:01:00]} 39. h4 {[%clk 0:00:16.6]} 39... Rxb2+ {[%clk 0:00:51.4]} 40.
Kf3 {[%clk 0:00:15.5]} 40... Rb3+ {[%clk 0:00:48.6]} 41. Kf4 {[%clk 0:00:15.5]}
41... h6 {[%clk 0:00:36.1]} 42. h5 {[%clk 0:00:12.2]} 42... gxh5 {[%clk
0:00:35.5]} 43. Rxh5 {[%clk 0:00:09.4]} 43... Rb4+ {[%clk 0:00:32.6]} 44. Kf3
{[%clk 0:00:08.3]} 44... Kg7 {[%clk 0:00:29.7]} 45. g5 {[%clk 0:00:08.6]} 45...
hxg5 {[%clk 0:00:30.2]} 46. Rxg5+ {[%clk 0:00:09.5]} 46... Kf6 {[%clk
0:00:30.5]} 47. Rg8 {[%clk 0:00:05.7]} 47... Rd4 {[%clk 0:00:29.7]} 48. Ke3
{[%clk 0:00:06]} 48... Rd6 {[%clk 0:00:29.7]} 49. Re8 {[%clk 0:00:03]} 49... Kf7
{[%clk 0:00:24.7]} 50. Rb8 {[%clk 0:00:02.5]} 50... Ke6 {[%clk 0:00:23.7]} 0-1

[Event "Early-Titled-Tuesday-Blitz-October-03-2023"]
[Site "Chess.com"]
[Date "2023.10.03"]
[Round "1"]
[White "Vladimir_Zakhartsov"]
[Black "Kielinkei"]
[Result "1-0"]
[WhiteElo "2827"]
[BlackElo "2468"]
[TimeControl "180+1"]
[EndTime "8:07:44 PDT"]
[Termination "Vladimir_Zakhartsov won by resignation"]

1. e4 {[%clk 0:03:00.1]} 1... c5 {[%clk 0:03:00.3]} 2. Nf3 {[%clk 0:03:00.2]}
2... e6 {[%clk 0:02:59]} 3. g3 {[%clk 0:02:59.4]} 3... d5 {[%clk 0:02:58.7]} 4.
exd5 {[%clk 0:02:59.6]} 4... exd5 {[%clk 0:02:59.6]} 5. Bg2 {[%clk 0:02:59.3]}
5... Qe7+ {[%clk 0:02:56.1]} 6. Kf1 {[%clk 0:02:50]} 6... Nf6 {[%clk 0:02:53.4]}
7. h3 {[%clk 0:02:48.9]} 7... g6 {[%clk 0:02:44]} 8. d4 {[%clk 0:02:40.1]} 8...
Bg7 {[%clk 0:02:41.3]} 9. Kg1 {[%clk 0:02:39.1]} 9... O-O {[%clk 0:02:40.4]} 10.
Kh2 {[%clk 0:02:39.4]} 10... cxd4 {[%clk 0:02:29]} 11. Nxd4 {[%clk 0:02:37.5]}
11... Nc6 {[%clk 0:02:29.4]} 12. Re1 {[%clk 0:02:32.4]} 12... Qd8 {[%clk
0:02:28.8]} 13. Nc3 {[%clk 0:02:26.7]} 13... Nxd4 {[%clk 0:02:24.3]} 14. Qxd4
{[%clk 0:02:26.3]} 14... Ng4+ {[%clk 0:02:23.9]} 15. Qxg4 {[%clk 0:02:23.6]}
15... Bxg4 {[%clk 0:02:24.6]} 16. hxg4 {[%clk 0:02:24.5]} 16... d4 {[%clk
0:02:20.3]} 17. Nd5 {[%clk 0:02:04.8]} 17... Kh8 {[%clk 0:02:10.2]} 18. Bf4
{[%clk 0:01:51]} 18... Rc8 {[%clk 0:02:07.1]} 19. Re2 {[%clk 0:01:49.5]} 19...
Re8 {[%clk 0:02:00.7]} 20. Rd2 {[%clk 0:01:47.7]} 20... Be5 {[%clk 0:01:46.8]}
21. g5 {[%clk 0:01:19.2]} 21... Rc5 {[%clk 0:01:31.9]} 22. c4 {[%clk 0:00:55.8]}
22... Rxc4 {[%clk 0:01:10.5]} 23. Rad1 {[%clk 0:00:55.4]} 23... Rc5 {[%clk
0:01:04.6]} 24. Rxd4 {[%clk 0:00:25]} 24... Bxd4 {[%clk 0:00:43.6]} 25. Rxd4
{[%clk 0:00:25.9]} 25... h6 {[%clk 0:00:36.4]} 26. gxh6 {[%clk 0:00:21.4]} 26...
Kh7 {[%clk 0:00:30.1]} 27. Be3 {[%clk 0:00:17.7]} 27... Rxd5 {[%clk 0:00:22.5]}
28. Rxd5 {[%clk 0:00:15.1]} 28... Qf6 {[%clk 0:00:18.5]} 29. Rd7 {[%clk
0:00:12.2]} 29... Rxe3 {[%clk 0:00:14.1]} 30. fxe3 {[%clk 0:00:13.1]} 30... Kxh6
{[%clk 0:00:14.2]} 31. Rxb7 {[%clk 0:00:12.6]} 31... a5 {[%clk 0:00:13.9]} 32.
a4 {[%clk 0:00:11]} 32... Qe6 {[%clk 0:00:11.5]} 33. Rb5 {[%clk 0:00:08.7]}
33... Qxe3 {[%clk 0:00:10.9]} 34. Rxa5 {[%clk 0:00:09.1]} 34... f5 {[%clk
0:00:07.6]} 35. Rb5 {[%clk 0:00:08.5]} 35... g5 {[%clk 0:00:07.7]} 36. Rxf5
{[%clk 0:00:08]} 36... Qb3 {[%clk 0:00:05.2]} 37. a5 {[%clk 0:00:05.6]} 37...
Qxb2 {[%clk 0:00:05.5]} 38. a6 {[%clk 0:00:04.5]} 38... Qa3 {[%clk 0:00:04.2]}
39. Rf6+ {[%clk 0:00:03.9]} 39... Kg7 {[%clk 0:00:03.7]} 40. Rc6 {[%clk
0:00:02.5]} 40... Kf7 {[%clk 0:00:01.1]} 41. Rc7+ {[%clk 0:00:03.1]} 41... Ke6
{[%clk 0:00:01.8]} 42. a7 {[%clk 0:00:03.8]} 42... Kf6 {[%clk 0:00:01.4]} 43.
a8=Q {[%clk 0:00:03.9]} 1-0